Cogmind - Beta 16 --- EXPLORER MODE // 2025.11.23 @ 14:30:12 Player: viper Result: Destroyed by TA-91T(R) with Subdweller Laser Performance ------------- Evolutions (0) 0 Regions Visited (2) 400 Robots Destroyed (24) 120 Value Destroyed (542) 542 Prototype IDs (0) 0 Alien Tech Used (0) 0 Bonus (0) 0 TOTAL SCORE: 1062 Bonus ------- None Cogmind --------- Core Integrity 0/250 Matter 278/300 Energy 93/100 System Corruption 0% Temperature Cool (6) Movement Core (1500) Ox29 Location -10/Subcaves Parts ------- > --- POWER (2) -------- (None) > --- PROPULSION (2) --- (None) > --- UTILITY (2) ------ Huge Storage Unit Targeting Computer > --- WEAPON (2) ------- Subdweller Machine Gun Subdweller Machine Gun > --- INVENTORY (25) --- Light Humpback High-capacity Matter Pod (200) Targeting Computer Makeshift Hacking Suite Makeshift System Shield EM Pulse Gun Small Laser Barrage Gun Peak State ------------ > --- POWER ------------ Subdweller Power Source > --- PROPULSION ------- Aluminum Leg Aluminum Leg > --- UTILITY ---------- Huge Storage Unit Targeting Computer > --- WEAPON ----------- Light Assault Rifle Light Assault Rifle > --- INVENTORY -------- Light Humpback High-capacity Matter Pod Targeting Computer Makeshift Hacking Suite Makeshift System Shield EM Pulse Gun Small Laser Subdweller Machine Gun Subdweller Machine Gun Barrage Gun [Rating: 10] Favorites ----------- Power Ion Engine Engine Ion Engine Propulsion Aluminum Leg Leg Aluminum Leg Utility Targeting Computer Storage Huge Storage Unit Processor Targeting Computer Weapon Light Assault Rifle Energy Gun EM Pulse Gun Ballistic Gun Light Assault Rifle Build | -11 -10 -10 ------- Run | Yrd Mat Sub Slots Evolved 1 | . 1 . Power 1 | . 1 . Propulsion . | . . . Utility . | . . . Weapon . | . . . Parts Attached 13 | 7 3 3 Power 3 | 1 1 1 Engine 3 | 1 1 1 Core . | . . . Reactor . | . . . Propulsion 2 | 2 . . Treads . | . . . Leg 2 | 2 . . Wheel . | . . . Hover . | . . . Flight . | . . . Utility 3 | 2 1 . Device . | . . . Storage 2 | 1 1 . Processor 1 | 1 . . Hackware . | . . . Protection . | . . . Artifact . | . . . Weapon 5 | 2 1 2 Energy Gun 1 | 1 . . Energy Cannon . | . . . Ballistic Gun 4 | 1 1 2 Ballistic Cannon . | . . . Launcher . | . . . Special Weapon . | . . . Impact Weapon . | . . . Slashing Weapon . | . . . Piercing Weapon . | . . . Special Melee Weapon . | . . . Unidentified Prototypes . | . . . Parts Lost 7 | . . 7 Power 3 | . . 3 Propulsion 2 | . . 2 Utility . | . . . Weapon 2 | . . 2 Highest Loss Streak 4 | . . 4 To Critical Strikes . | . . . Average Backups 5 | . 3 8 Power . | . . . Propulsion . | . . . Utility 2 | . 1 4 Weapon 2 | . 1 4 Tool/Special . | . . . Unused Backups 7 | . . 7 Power . | . . . Propulsion . | . . . Utility 5 | . . 5 Weapon 2 | . . 2 Tool/Special . | . . . Average Slot Usage (%) 92 | . 100 83 Engine 20 | . 25 14 Leg 22 | . 25 18 Storage 12 | . 12 12 Processor 12 | . 12 12 Ballistic Gun 24 | . 24 24 Peak Build Rating 10 | 7 8 10 Average Rating 8 | 5 7 8 On Entrance 5 | . 7 8 Avg Prop Armor Cover (%) 31 | 31 . . Naked Turns . | . . . Heaviest Build 92 | 18 92 92 Greatest Support 20 | 20 20 20 Greatest Overweight (x) 29 | 4 4 29 Average Overweight (x) 4 | . 3 5 Largest Inventory Capacity 25 | 10 25 25 Average Capacity 24 | 8 24 25 Most Carried 12 | 3 4 12 Average Carried 5 | 1 3 9 Final Capacity 25 | 10 25 25 Final Carried 9 | 3 4 9 Class Distribution -------------------- 100% | Hacker-Mutant Dominant Class ---------------- Hacker-Mutant | -10/Materials Hacker-Mutant | -10/Subcaves Resources | -11 -10 -10 ----------- Run | Yrd Mat Sub Matter Collected 639 | 231 371 37 Remotely . | . . . Salvage Created 859 | . 717 142 Parts 52 | . 41 11 Haulers Intercepted 2 | . 2 . Recyclers Shooed 1 | . 1 . Parts Field Recycled . | . . . Retrieved Matter . | . . . Parts Self-Destructed . | . . . Prevented . | . . . Parts Restored . | . . . Kills | -11 -10 -10 ------- Run | Yrd Mat Sub Combat Hostiles Destroyed 18 | . 15 3 Guns 18 | . 15 3 Classes Destroyed 7 | . 6 1 Worker 1 | . 1 . Hauler 2 | . 2 . Recycler 1 | . 1 . Watcher 2 | . 2 . Swarmer 6 | . 6 . Grunt 9 | . 9 . Subdweller 3 | . . 3 Best Kill Streak 5 | . 5 1 Combat Bots Only 4 | . 4 1 Max Kills in Single Turn 2 | . 2 1 Gunslinging . | . . . Exploded . | . . . Melee . | . . . Uniques/NPCs Destroyed . | . . . Combat | -11 -10 -10 -------- Run | Yrd Mat Sub Hostile Shots Fired 118 | . 74 44 Missed 31 | . 24 7 Hits 87 | . 50 37 Projectile 87 | . 50 37 Critical Strikes 1 | . . 1 Damage Taken 852 | . 328 524 Core 260 | . 78 182 Absorbed by Shields . | . . . Ignored by Resistances 497 | . 208 289 Core Remaining (%) 100 | 100 . . Volleys Fired 79 | . 54 25 Largest 2 | . 2 2 Hottest 60 | . 40 60 Shots Fired 153 | . 108 45 Gun 153 | . 108 45 Cannon . | . . . Launcher . | . . . Special . | . . . Kinetic 153 | . 108 45 Thermal . | . . . Explosive . | . . . Electromagnetic . | . . . Robot Hit Streak 33 | . 33 25 Robot Miss Streak 1 | . 1 1 Penetration Max . | . . . Secondary Targets 4 | . 4 . Max Gunslinging Chain 1 | . 1 . Shots Hit Robots 135 | . 93 42 Core Hits 57 | . 46 11 Critical Kills . | . . . Critical Parts Destroyed . | . . . Critical Strikes . | . . . Melee Attacks . | . . . Impact . | . . . Slashing . | . . . Piercing . | . . . Sneak Attacks . | . . . Combat Hostiles . | . . . Follow-up Attacks . | . . . Damage Inflicted 1177 | . 751 426 Guns 1172 | . 746 426 Cannons . | . . . Explosions . | . . . Melee . | . . . Ramming 5 | . 5 . Kinetic 1172 | . 746 426 Thermal . | . . . Explosive . | . . . Electromagnetic . | . . . Impact . | . . . Slashing . | . . . Piercing . | . . . Highest Corruption . | . . . Average Corruption . | . . . Corruption Purged . | . . . Corruption Blocked . | . . . Overload Shots . | . . . Overflow Damage . | . . . Projectiles . | . . . Explosions . | . . . Melee . | . . . Knockbacks . | . . . Impact . | . . . Kinetic . | . . . Secondary . | . . . Self-Inflicted Damage . | . . . Shots . | . . . Rammed . | . . . Targets Rammed 2 | . 2 . Kicked 2 | . 2 . Crushed . | . . . Highest Temperature 93 | . 93 . Average Temperature 29 | . 29 . Received Heat Transfer 399 | . 231 168 Siege Activations . | . . . Martial Activations . | . . . Shielding Activations . | . . . Robots Disrupted . | . . . Combat Hostiles . | . . . Robots Corrupted . | . . . Combat Hostiles . | . . . Parts Fried . | . . . Impact Corruptions . | . . . Robots Melted . | . . . Combat Hostiles . | . . . Parts Melted . | . . . Heat Transferred . | . . . Parts Sabotaged . | . . . Parts Stolen . | . . . Parts Stripped . | . . . Power Chain Reactions . | . . . Alert | -11 -10 -10 ------- Run | Yrd Mat Sub Maximum Alert Level . | . . . Low Security (%) 100 | 100 100 . Level 1 . | . . . Level 2 . | . . . Level 3 . | . . . Level 4 . | . . . Level 5 . | . . . High Security . | . . . Max Security . | . . . Peak Influence 92 | . 92 . Initial . | . . . Average 7 | . 7 . Influence Increases 469 | . 469 . Destroy 0b10 Robot/C 300 | . 300 . Destroy 0b10 Robot/NC 30 | . 30 . Destroy Leader 78 | . 78 . Successful Hack 61 | . 61 . Influence Decreases 469 | . 469 . Time Decay 469 | . 469 . Squads Dispatched 3 | . 3 . Investigation 3 | . 3 . Extermination . | . . . Reinforcement . | . . . Assault . | . . . Garrison . | . . . Intercept . | . . . Searches Triggered . | . . . Construction Impeded . | . . . Haulers Reinforced . | . . . Active Scanning Responses . | . . . Cargo Convoy Interrupts . | . . . Stealth | -11 -10 -10 --------- Run | Yrd Mat Sub Distress Signals 1 | . 1 . Communications Jammed . | . . . Distress Signals . | . . . Times Spotted 26 | . 21 5 Peak Tracking Total 4 | . 4 2 Tactical Retreats . | . . . Traps | -11 -10 -10 ------- Run | Yrd Mat Sub Traps Triggered 1 | . . 1 Indirectly . | . . . Trap Hack Attempts . | . . . Triggered . | . . . Disarmed . | . . . Reprogrammed 4 | . 4 . Reused . | . . . Traps Extracted . | . . . Installed . | . . . Triggered . | . . . Machines | -11 -10 -10 ---------- Run | Yrd Mat Sub Machines Disabled . | . . . Max in Single Turn . | . . . Machines Repaired . | . . . Machines Dismantled . | . . . Machines Sabotaged . | . . . Overloaded Fab Kills . | . . . Hacking | -11 -10 -10 --------- Run | Yrd Mat Sub Machines Accessed 7 | . 7 . Terminals 7 | . 7 . Fabricators . | . . . Repair Stations . | . . . Recycling Units . | . . . Scanalyzers . | . . . Garrison Access . | . . . Total Hacks 34 | . 34 . Successful 22 | . 22 . Failed 12 | . 12 . Catastrophic 1 | . 1 . Database Lockouts . | . . . Manual . | . . . Terminals 34 | . 34 . Fabricators . | . . . Repair Stations . | . . . Recycling Units . | . . . Scanalyzers . | . . . Garrison Access . | . . . Terminal Hacks 22 | . 22 . Record 5 | . 5 . Robot Analysis 1 | . 1 . Branch Access Points 1 | . 1 . Recycling Unit Index 1 | . 1 . Alert Level 1 | . 1 . Locate Traps 2 | . 2 . Disarm Traps 1 | . 1 . Reprogram Traps 2 | . 2 . Dispatch Records 1 | . 1 . Maintenance Status 2 | . 2 . Recall Investigation 1 | . 1 . Registered Components 1 | . 1 . Zone Layout 3 | . 3 . Fabricator Hacks . | . . . Repair Station Hacks . | . . . Recycling Unit Hacks . | . . . Scanalyzer . | . . . Garrison Access Hacks . | . . . Unauthorized Hacks . | . . . Terminals . | . . . Fabricators . | . . . Repair Stations . | . . . Recycling Units . | . . . Scanalyzers . | . . . Garrison Access . | . . . Data Cores Recovered . | . . . Used . | . . . Hacking Detections 6 | . 6 . Full Trace Events 6 | . 6 . Feedback Events . | . . . Feedback Blocked . | . . . Robot Schematics Acquired . | . . . Robots Built . | . . . Authchips . | . . . Time . | . . . Total Robot Build Rating . | . . . Part Schematics Acquired . | . . . Parts Built . | . . . Authchips . | . . . Time . | . . . Total Part Build Rating . | . . . Part Studies Acquired . | . . . Parts Repaired . | . . . Time . | . . . Parts Recycled . | . . . Recycled Matter . | . . . Retrieved Matter . | . . . Retrieved Components . | . . . Parts Scanalyzed . | . . . Part Schematics Acquired . | . . . Parts Damaged . | . . . Bothacking | -11 -10 -10 ------------ Run | Yrd Mat Sub Used RIF Installer . | . . . Robots Hacked . | . . . Non-combat . | . . . Combat . | . . . Robot Hacks Applied . | . . . Relay Couplers Released . | . . . Fabnet Peak Effective % . | . . . Robots Rewired . | . . . Allies Hacked . | . . . Hacks Repelled . | . . . Allies | -11 -10 -10 -------- Run | Yrd Mat Sub Total Allies . | . . . Largest Group . | . . . Highest-Rated Group . | . . . Highest-Rated Ally . | . . . Total Orders . | . . . Ally Attacks . | . . . Total Damage . | . . . Kills . | . . . Allies Corrupted . | . . . Allies Melted . | . . . Intel | -11 -10 -10 ------- Run | Yrd Mat Sub Active Infowar (turns) . | . . . Robot Analysis Total 1 | . 1 . Derelict Logs Recovered 1 | . . 1 Drone Launches . | . . . Drone Recoveries . | . . . Exploration | -11 -10 -10 ------------- Run | Yrd Mat Sub Turns Passed 4814 | 74 2764 1976 Spaces Moved 1057 | 56 626 375 Core 30 | 29 . 1 Treads . | . . . Legs 1027 | 27 626 374 Wheels . | . . . Hover . | . . . Flight . | . . . Fastest Speed 50 | 50 190 400 Average Speed 405 | 109 370 507 Slowest Speed 1500 | 250 400 1500 Overloaded Moves . | . . . Propulsion Burnouts . | . . . Robots Hopped . | . . . Potential Cave-ins . | . . . Cave-ins Triggered . | . . . Exploration Rate (%) 44 | 3 94 35 Regions Visited 2 Branch Regions 1 Pre-discovered Areas 1 | . . 1 Known Exits Taken 2 | 1 1 . Unknown Exits Taken . | . . . Scrap Searched 3 | . . 3 Spaces Dug . | . . . Terrain Destroyed . | . . . Melee . | . . . Projectile . | . . . AOE . | . . . Terrain Rammed . | . . . Walls Destroyed . | . . . Machines Disabled . | . . . Actions | -11 -10 -10 --------- Run | Yrd Mat Sub Total 1458 | 65 983 410 Wait 296 | . 296 . Move 1055 | 55 625 375 Hop . | . . . Pick Up 11 | 3 1 7 Fast Attach 8 | 7 1 . Attach 4 | . 1 3 Detach 1 | . 1 . Swap 1 | . 1 . Drop 1 | . 1 . Fire 79 | . 54 25 Melee . | . . . Ram . | . . . Kick 2 | . 2 . Crush . | . . . Escape Stasis . | . . . Rewire . | . . . Trap . | . . . Miscellaneous . | . . . Route ------- -11/Scrapyard -10/Materials (discovered 6 exits: *Mat x3 / *Min x2 / *Sub) -10/Subcaves History --------- Turn | Location | Event 3 | -11/Scrapyard | Identified exit to Materials 3 | -11/Scrapyard | Discovered exit to Materials (range 15) 75 | -11/Scrapyard | Entered Materials 75 | -10/Materials | Evolved 1 slot: Power x1 308 | -10/Materials | Build established: Hacker-Mutant 330 | -10/Materials | Identified exit to Mines 330 | -10/Materials | Discovered exit to Mines (range 8) 838 | -10/Materials | Identified exit to Materials 838 | -10/Materials | Discovered exit to Materials (range 14) 1832 | -10/Materials | Discovered exit to Materials (range 7) 2310 | -10/Materials | Discovered exit to Materials (range 7) 2815 | -10/Materials | Identified exit to Subcaves 2815 | -10/Materials | Discovered exit to Subcaves (range 6) 2839 | -10/Materials | Entered Subcaves 3561 | -10/Subcaves | Core integrity fell below 50% 4808 | -10/Subcaves | Core integrity fell below 20% 4815 | -10/Subcaves | Destroyed by TA-91T(R) with Subdweller Laser Last Messages --------------- Sink. 03789_ Sub. Power Source shoots sparks and powers down. 03826_ Triggered Piercing Trap. 03826_ Spikes shoot up from the floor. 03826_ Aluminum Leg destroyed. 03826_ Critical hit (Impale). 04089_ Subatomizers dissect the Sub. Laser. 04118_ Subatomizers dissect the Sub. Machine Gun, destroying it. 04128_ Subatomizers dissect the Sub. Monowheel. 04386_ 6S-O62(u) deconstructs Twisted Machinery. 04670_ 6S-O62(u) builds Twisted Machinery. 04774_ A thin wall crumbles away, revealing a door. 04781_ Lgt. Assault Rifle destroyed. 04785_ Aluminum Leg destroyed. 04799_ Lgt. Assault Rifle destroyed. 04813_ Broken Sub. Power Source destroyed. Map ----- +----------------------------------------------------+ | ?????????????????????????????????????????????????? | | ?????????????????????????????????????????????????? | | ?????????????????????????????????????????????????? | | ?????????????????????????????????????????????????? | | ?????????????????????????????????????????????????? | | ?????????????????????????????????????????????????? | | ?????????????????????????????????????????????????? | | ?????????????????????????????????????????????????? | | ???????#####?????????????????????????????????????? | | ???##### #??############???????????????????????? | | ####" #??# " ##??????????????????????? | | "" #??# "" ##?????????????????????? | | "" #####"" " #?????????????????????? | | "" #### " #?????????????????????? | | ##?# "" #??????????????????????? | | ##?#""" #??????????????????????? | | ### ###""### #?????????????????????? | | ###?# ## #?## ## ##?????????????????????? | | #???### ##?# ########??????????????????????? | | ????### #?# ######?###?"#????????????????? | | ????# ### # # ## ## ##???????????????? | | ???# ## ##??????????????? | | ??# # ##?????????????? | | ?# ## ### # #?????????????? | | ?## ##### ## #?## # #?????????????? | | ??# ????## #### #?# @ #?????????????? | | ??# ??????## ##??###?#### #?????????????? | | ??# ???????###??????????##RR #?????????????? | | ?? ?????????????????????? # #????????????? | | ? ?????????????????????? #? ##????????????? | | ? ??????????????????????? #??? #????????????? | | ????????????????????????? #????#????????????? | | ???????????????????????? ## ?????????????????? | | ???????????????????????? """#?""????????????????? | | ???????????????????????? ##??""???????????????? | | ???????????????????????? ###????????????????????? | | ???????????????????????# ???????????????????????? | | ??????????????????????? ???????????????????????? | | ???????????????????????# ???????????????????????? | | ??????????????????????? ???????????????????????? | | ???????????????????????? ???????????????????????? | | ?????????????????????????????????????????????????? | | ?????????????????????????????????????????????????? | | ?????????????????????????????????????????????????? | | ?????????????????????????????????????????????????? | | ?????????????????????????????????????????????????? | | ?????????????????????????????????????????????????? | | ?????????????????????????????????????????????????? | | ?????????????????????????????????????????????????? | | ?????????????????????????????????????????????????? | +----------------------------------------------------+ Best States ------------- Heat Dissipation 25 Energy Generation 15 Energy Capacity 400 Matter Stores 300 Matter Capacity 300 Sight Range 16 Terrain Scan Density 10 Resistance: KI 35 Resistance: TH 35 Resistance: EX 35 Resistance: EM 35 Resistance: I 35 Resistance: S 35 Resistance: P 35 Evasion (%) 50 Targeting Accuracy 5 Offensive Hacking 20 Item Schematics ----------------- None Robot Schematics ------------------ None Fabricated ------------ Nothing Repaired ---------- Nothing Studied --------- None Alien Tech Used ----------------- None Achievements -------------- None Challenges ------------ None Game ------ Seed UltimateFieldthrustWings Manual? 0 Play Time 00:15:18 Cumulative 2203.3 hours Start 2025.11.23 @ 14:18:10 End 2025.11.23 @ 14:30:12 Sessions 1 Manual Loads 0 Difficulty Explorer Special Mode None Game No. 1073 Rogue 62 Adventurer 0 Explorer 1011 Win Type - Total 11 Types 11/0/0/0/0/0/0/0/0/0 Lore% 63 Gallery% 72 Achievement% 46 Wizard Run 0 Options --------- Layout 1 ASCII 0 Keyboard 0 Movement Numpad Keybinds 0 Fullscreen 1 Font 48/Smallcaps Map View 50x35 Zoom Use 0% Tactical HUD 1 Map Filters NONE Filters NONE Steam 1 RUN: 1fcde9ae-bd8b-438e-9dba-7de20f1c27e8